bitfinex/quotes_SOLUSD_20250410
["timestamp","ask_amount","ask_price","bid_price","bid_amount"]
[1744307901363,25.66534745,110.46,110.45,11.7]
[1744307901959,34.71754745,110.47,110.45,11.7]
[1744307902763,9.0522,110.47,110.45,11.7]
[1744307904059,34.71754745,110.47,110.45,11.7]
[1744307906266,34.71754745,110.47,110.45,11.7]
[1744307906438,9.0522,110.47,110.45,11.7]
[1744307906765,25.66534745,110.46,110.45,11.7]
[1744307908474,34.71834745,110.46,110.45,11.7]
[1744307910143,22.6256,110.5,110.46,18.79181043]
[1744307910359,22.6256,110.5,110.46,44.45715788]
[1744307910553,57.34064745,110.5,110.46,44.45715788]
[1744307910755,9.0497,110.5,110.49,0.14216157]
[1744307910978,34.71504745,110.5,110.46,6.3525]
[1744307911153,34.71504745,110.5,110.45,11.7]
[1744307911154,25.66534745,110.48,110.45,11.7]
[1744307911476,25.66534745,110.47,110.45,11.7]
[1744307911852,25.66534745,110.49,110.45,11.7]
[1744307912053,25.66534745,110.46,110.45,11.7]
[1744307912560,9.053,110.46,110.45,11.7]
[1744307913875,45.2488,110.5,110.45,11.7]
[1744307914188,25.66534745,110.49,110.45,11.7]
[1744307914688,25.66534745,110.49,110.46,0.14216157]
[1744307915185,25.66534745,110.5,110.46,0.14216157]
[1744307915359,76.9165,110.51,110.46,1.66896157]
[1744307915564,57.33654745,110.51,110.48,0.14216157]
[1744307918971,31.6712,110.51,110.48,0.14216157]
[1744307919263,9.0489,110.51,110.5,0.14216157]
[1744307919587,9.0489,110.51,110.5,11.80216157]
[1744307920169,34.71344745,110.52,110.5,11.66]
[1744307920481,25.66534745,110.51,110.5,11.66]
[1744307920877,34.71344745,110.52,110.5,11.66]
[1744307921389,9.0777,110.53,110.51,25.80750902]
[1744307921588,9.0777,110.53,110.51,27.35410902]
[1744307921964,0.03,110.53,110.52,44.74148102]
[1744307922268,25.69534745,110.53,110.49,6.521]
[1744307922467,25.66534745,110.52,110.49,6.521]
[1744307923078,0.03,110.53,110.49,44.45715788]
[1744307923286,25.69534745,110.53,110.49,18.79181043]
[1744307924067,25.66534745,110.51,110.49,0.14216157]
[1744307924279,9.0497,110.5,110.49,0.14216157]
[1744307924479,34.71504745,110.5,110.47,0.14216157]
[1744307924677,9.0497,110.5,110.47,0.14216157]
[1744307924888,57.33944745,110.5,110.47,0.14216157]
[1744307925593,31.6741,110.5,110.47,0.14216157]
[1744307925910,31.6741,110.5,110.47,18.79181043]
[1744307926689,25.66534745,110.49,110.47,0.14216157]
[1744307926883,57.33944745,110.5,110.47,0.14216157]
[1744307927090,25.66534745,110.49,110.47,0.14216157]
[1744307928175,25.66534745,110.48,110.43,0.14216157]
[1744307928370,9.0522,110.47,110.45,0.14216157]
[1744307929079,34.71754745,110.47,110.45,0.14216157]
[1744307929778,34.71754745,110.47,110.44,18.64964886]
[1744307929779,25.66534745,110.46,110.43,0.14216157]
[1744307930583,9.0538,110.45,110.43,0.14216157]
[1744307930911,25.66534745,110.44,110.41,99.1714]
[1744307931493,31.6884,110.45,110.41,99.1714]
[1744307931700,31.6884,110.45,110.41,124.83674745]
[1744307931875,57.35374745,110.45,110.41,124.83674745]
[1744307932083,57.35374745,110.45,110.41,87.5114]
[1744307932283,25.66534745,110.42,110.41,0.063]
[1744307936703,34.72164745,110.42,110.41,0.063]
[1744307940413,9.0563,110.42,110.4,0.063]
[1744307940711,25.66534745,110.41,110.4,0.063]
[1744307940933,34.72244745,110.41,110.4,0.063]
[1744307941104,9.0571,110.41,110.4,0.063]
[1744307941306,31.6892,110.45,110.4,25.87050902]
[1744307941614,9.0538,110.45,110.42,27.42550902]
[1744307941791,9.0535,110.46,110.44,25.66534745]
[1744307941984,22.6314,110.47,110.45,25.80750902]
[1744307941985,9.0526,110.47,110.45,25.80750902]
[1744307942204,25.66534745,110.47,110.43,18.64964886]
[1744307942405,25.66534745,110.45,110.43,0.14216157]
[1744307942589,25.66534745,110.46,110.43,0.14216157]
[1744307942785,31.6803,110.48,110.43,0.14216157]
[1744307942989,9.053,110.46,110.43,25.80750902]
[1744307943205,34.71834745,110.46,110.43,0.14216157]
[1744307943401,25.66534745,110.45,110.43,0.14216157]
[1744307943606,57.35094745,110.46,110.43,0.14216157]
[1744307943992,25.66534745,110.45,110.43,0.14216157]
[1744307944511,25.66534745,110.44,110.4,0.063]
[1744307944689,25.66534745,110.42,110.4,0.063]
[1744307945087,34.72244745,110.41,110.4,0.063]
[1744307945521,31.6884,110.45,110.4,0.20516157]
[1744307945691,25.66534745,110.43,110.4,0.20516157]
[1744307946504,25.66534745,110.42,110.4,0.20516157]
[1744307946809,31.6884,110.45,110.4,0.20516157]
[1744307947014,25.66534745,110.43,110.4,0.20516157]
[1744307947218,9.0563,110.42,110.4,25.87050902]
[1744307948306,9.0563,110.42,110.4,0.20516157]
[1744307948893,9.0555,110.43,110.4,0.20516157]
[1744307949203,25.66534745,110.44,110.4,0.20516157]
[1744307949401,25.66534745,110.46,110.42,18.79181043]
[1744307949711,25.66534745,110.46,110.44,0.14216157]
[1744307949908,0.03,110.47,110.46,0.14216157]
[1744307951418,25.69534745,110.47,110.43,81.0]
[1744307951590,25.66534745,110.44,110.41,0.14216157]
[1744307951792,0.03,110.47,110.41,0.14216157]
[1744307951992,0.03,110.47,110.4,18.71264886]
[1744307951993,25.66534745,110.43,110.4,0.20516157]
[1744307952241,25.66534745,110.46,110.4,0.20516157]
[1744307952242,25.66534745,110.42,110.4,0.20516157]
[1744307952406,25.66534745,110.41,110.4,0.063]
[1744307952908,25.66534745,110.43,110.4,0.063]
[1744307953218,9.0538,110.45,110.4,25.87050902]
[1744307953422,25.66534745,110.44,110.4,25.87050902]
[1744307953805,25.66534745,110.44,110.4,0.20516157]
[1744307953999,31.6884,110.45,110.4,0.20516157]
[1744307954000,9.0538,110.45,110.4,44.52015788]
[1744307954310,34.71854745,110.46,110.43,0.14216157]
[1744307954504,9.0532,110.46,110.43,0.14216157]
[1744307954913,25.66534745,110.45,110.43,0.14216157]
[1744307955215,9.0532,110.46,110.43,0.14216157]
[1744307955619,9.0826,110.47,110.44,25.80750902]
[1744307955948,9.0826,110.47,110.44,0.14216157]
[1744307956132,9.0826,110.47,110.44,11.78216157]
[1744307957818,49.98029754,110.47,110.44,11.78216157]
[1744307958220,40.89769754,110.46,110.4,112.703]
[1744307958460,40.89769754,110.43,110.4,11.703]
[1744307959242,9.0563,110.42,110.4,11.703]
[1744307959533,49.95399754,110.42,110.4,11.703]
[1744307959729,9.0563,110.42,110.4,11.703]
[1744307960131,49.95399754,110.42,110.4,11.703]
[1744307963452,40.89769754,110.41,110.4,11.703]
[1744307963646,40.89769754,110.41,110.4,0.063]
[1744307965239,40.89769754,110.41,110.4,0.0001]
[1744307965240,90.85249508,110.41,110.4,0.0001]
[1744307965412,49.95479754,110.41,110.4,0.0001]
[1744307970721,90.85249508,110.41,110.4,0.0001]
[1744307970925,49.95479754,110.41,110.4,0.0001]
[1744307971634,90.85249508,110.41,110.4,0.0001]
[1744307971939,49.95479754,110.41,110.4,0.0001]
[1744307977348,34.65395671,110.41,110.4,0.0001]
[1744307980749,48.23255671,110.45,110.4,25.73911828]
[1744307980946,57.28635671,110.45,110.4,37.35911828]
[1744307981131,57.28635671,110.45,110.41,25.59685671]
[1744307981332,25.59685671,110.44,110.4,37.35911828]
[1744307981559,25.59685671,110.43,110.4,11.6201]
[1744307982059,25.59685671,110.44,110.4,11.6201]
[1744307982350,25.59685671,110.44,110.4,37.21695671]
[1744307982654,25.59685671,110.44,110.4,25.59695671]
[1744307982839,9.0555,110.43,110.4,0.0001]
[1744307983241,9.0555,110.43,110.4,25.59695671]
[1744307983437,9.0555,110.43,110.4,0.0001]
[1744307983637,9.0555,110.43,110.4,25.59695671]
[1744307984554,31.6942,110.43,110.4,0.0001]
[1744307984736,25.59685671,110.41,110.4,0.0001]
[1744307986355,26.0,110.42,110.4,0.0001]
[1744307986557,25.59685671,110.41,110.4,0.0001]
[1744307986952,34.65395671,110.41,110.4,0.0001]
[1744307989859,9.0571,110.41,110.4,0.0001]
[1744307991558,34.65395671,110.41,110.4,0.0001]
[1744307992368,60.25081342,110.41,110.4,0.0001]
[1744307993668,34.65395671,110.41,110.4,0.0001]
[1744307993874,60.53513656,110.41,110.4,0.0001]
[1744307994072,25.59685671,110.37,110.36,0.063]
[1744307994765,25.59685671,110.4,110.36,0.063]
[1744307995069,34.65725671,110.37,110.36,0.063]
[1744307995245,9.0604,110.37,110.36,0.063]
[1744307995446,34.65725671,110.37,110.36,0.063]
[1744307995851,34.65725671,110.37,110.36,0.0001]
[1744307997963,9.0604,110.37,110.36,0.0001]
[1744307998137,34.65725671,110.37,110.36,0.0001]
[1744307999846,9.0604,110.37,110.36,0.0001]
[1744308000239,34.65725671,110.37,110.36,0.0001]
[1744308000864,34.65725671,110.37,110.35,0.0001]
[1744308001039,25.59685671,110.36,110.35,0.0001]
[1744308001457,34.65725671,110.37,110.35,0.0001]
[1744308001947,25.59685671,110.36,110.35,0.0001]
[1744308002143,9.0604,110.37,110.35,0.0001]
[1744308002347,34.65725671,110.37,110.35,0.0001]
[1744308002549,25.59685671,110.36,110.35,0.0001]
[1744308003877,34.65805671,110.36,110.35,0.0001]
[1744308004674,9.0612,110.36,110.35,0.0001]
[1744308005067,34.65805671,110.36,110.35,0.0001]
[1744308005376,9.0612,110.36,110.35,0.0001]
[1744308005776,34.65805671,110.36,110.35,0.0001]
[1744308006765,26.0,110.34,110.33,0.0001]
[1744308006964,77.19371342,110.34,110.33,0.0001]
[1744308007175,77.19371342,110.34,110.3,0.063]
[1744308007378,77.0205,110.36,110.3,25.65985671]
[1744308007577,77.0205,110.36,110.3,41.06482069]
[1744308007748,77.0205,110.36,110.31,42.58142069]
[1744308007951,31.72,110.34,110.31,7.8046]
[1744308008463,41.00182069,110.33,110.31,7.8046]
[1744308008660,72.72182069,110.34,110.31,7.8046]
[1744308009058,41.00182069,110.33,110.31,7.8046]
[1744308009964,50.06632069,110.32,110.3,0.063]
[1744308010172,9.0645,110.32,110.3,0.063]
[1744308010475,41.00182069,110.31,110.3,0.063]
[1744308010855,41.00182069,110.31,110.29,0.063]
[1744308011060,41.00182069,110.3,110.29,0.063]
[1744308012077,50.06792069,110.3,110.28,0.0001]
[1744308012287,82.00364138,110.29,110.27,0.0001]
[1744308012469,108.00364138,110.28,110.27,0.0001]
[1744308012885,31.7315,110.3,110.27,0.0001]
[1744308013092,41.00182069,110.29,110.27,0.0001]
[1744308013278,41.00182069,110.28,110.27,0.0001]
[1744308013478,41.00182069,110.29,110.27,0.0001]
[1744308013670,31.7315,110.3,110.27,0.0001]
[1744308013671,72.73332069,110.3,110.27,0.0001]
[1744308013867,41.00182069,110.29,110.27,0.0001]
[1744308014067,9.0678,110.28,110.27,0.0001]
[1744308014262,50.06962069,110.28,110.27,0.0001]
[1744308014787,9.0678,110.28,110.27,0.0001]
[1744308014992,50.06962069,110.28,110.27,0.0001]
[1744308015584,76.06962069,110.28,110.27,0.0001]
[1744308015893,117.35576452,110.28,110.27,0.0001]
[1744308016091,117.35576452,110.28,110.24,0.063]
[1744308016092,26.0,110.25,110.24,0.0001]
[1744308016394,67.00182069,110.25,110.24,0.0001]
[1744308016977,26.0,110.25,110.24,0.0001]
[1744308017293,67.00182069,110.25,110.24,0.0001]
[1744308017676,26.0,110.25,110.24,0.0001]
[1744308017993,67.00182069,110.25,110.24,0.0001]
[1744308018197,35.0702,110.25,110.24,0.0001]
[1744308018385,76.07202069,110.25,110.24,0.0001]
[1744308019085,35.0702,110.25,110.24,0.0001]
[1744308019273,76.07202069,110.25,110.24,0.0001]
[1744308021293,98.74772069,110.25,110.22,0.063]
[1744308021492,41.00182069,110.23,110.22,0.063]
[1744308021702,57.7459,110.25,110.22,0.063]
[1744308022070,41.00182069,110.23,110.22,0.063]
[1744308022499,50.07372069,110.23,110.22,0.063]
[1744308023300,50.07372069,110.23,110.21,0.0001]
[1744308023475,41.00182069,110.22,110.21,0.0001]
[1744308023868,9.0719,110.23,110.21,0.0001]
[1744308024104,50.07372069,110.23,110.21,0.0001]
[1744308024499,41.00182069,110.22,110.21,0.0001]
[1744308024804,50.07452069,110.22,110.21,0.0001]
[1744308025394,9.0727,110.22,110.21,0.0001]
[1744308025603,50.07452069,110.22,110.21,0.0001]
[1744308027105,9.0719,110.23,110.21,41.00192069]
[1744308027313,9.0702,110.25,110.22,41.00182069]
[1744308027512,9.0702,110.25,110.24,41.14398226]
[1744308027706,18.24395363,110.32,110.25,18.79181043]
[1744308027707,54.3871,110.32,110.25,18.79181043]
[1744308028008,41.00182069,110.3,110.26,41.00182069]
[1744308028386,41.00182069,110.3,110.25,18.79181043]
[1744308028701,22.6664,110.3,110.27,41.00182069]
[1744308029006,22.6664,110.3,110.25,18.79181043]
[1744308029007,22.6664,110.3,110.26,41.00182069]
[1744308029707,22.6664,110.3,110.27,41.00182069]
[1744308030504,41.00182069,110.29,110.24,6.1836]
[1744308030783,50.06962069,110.28,110.25,0.14216157]
[1744308030985,72.73912069,110.28,110.25,0.14216157]
[1744308031207,31.7373,110.28,110.25,41.14398226]
[1744308031909,31.7373,110.28,110.24,47.18542069]
[1744308032091,72.73912069,110.28,110.24,47.18542069]
[1744308032613,31.7373,110.28,110.25,41.00182069]
[1744308033314,31.7373,110.28,110.24,47.18542069]
[1744308033630,72.73912069,110.28,110.24,6.1836]
[1744308033796,41.00182069,110.26,110.23,1.6505]
[1744308034192,41.00182069,110.24,110.21,18.20496157]
[1744308034493,41.00182069,110.22,110.21,0.0001]
[1744308034920,50.07452069,110.22,110.21,0.0001]
[1744308035396,91.07634138,110.22,110.21,0.0001]
[1744308035799,50.07452069,110.22,110.21,0.0001]
[1744308036117,91.07634138,110.22,110.21,0.0001]
[1744308037412,50.07452069,110.22,110.21,0.0001]
[1744308038196,91.36066452,110.22,110.21,0.0001]
[1744308038392,9.35702314,110.22,110.21,0.0001]
[1744308038600,50.35884383,110.22,110.21,0.0001]
[1744308039114,159.40636452,110.22,110.18,0.063]
[1744308039315,41.00182069,110.19,110.18,0.063]
[1744308040427,45.3391,110.28,110.19,1.64466157]
[1744308040627,45.8314,110.3,110.23,41.00182069]
[1744308040628,31.7402,110.27,110.23,41.00182069]
[1744308040797,9.0686,110.27,110.25,41.00182069]
[1744308040996,63.67002069,110.29,110.24,0.14216157]
[1744308040997,9.0678,110.28,110.24,0.14216157]
[1744308041301,41.00182069,110.27,110.23,41.14398226]
[1744308041519,72.73912069,110.28,110.24,59.65146955]
[1744308041696,9.0678,110.28,110.25,41.00182069]
[1744308042297,0.34732314,110.33,110.27,41.00182069]
[1744308042298,9.0661,110.3,110.27,41.00182069]
[1744308042503,9.0661,110.3,110.26,42.66958226]
[1744308042707,50.06792069,110.3,110.26,42.66958226]
[1744308043119,9.0661,110.3,110.27,47.38282069]
[1744308043315,9.0661,110.3,110.27,6.381]
[1744308043316,72.73332069,110.3,110.27,6.381]
[1744308043517,41.00182069,110.28,110.24,6.381]
[1744308043824,41.00182069,110.27,110.24,6.381]
[1744308044125,41.00182069,110.26,110.23,1.5398]
[1744308044330,41.00182069,110.25,110.23,1.5398]
[1744308045003,9.0711,110.24,110.21,6.26136157]
[1744308045504,9.0711,110.24,110.21,47.26318226]
[1744308046134,9.0711,110.24,110.22,41.14398226]
[1744308046434,9.0706,110.25,110.23,41.00182069]
[1744308046937,67.9839,110.32,110.25,0.14216157]
[1744308047124,9.0645,110.32,110.27,0.14216157]
[1744308047432,9.0645,110.32,110.29,41.00182069]
[1744308047633,9.1269,110.33,110.31,41.00182069]
[1744308048209,9.1269,110.33,110.32,59.79363112]
[1744308048210,0.063,110.33,110.32,59.79363112]
[1744308048536,0.063,110.35,110.33,18.933972]
[1744308048713,0.063,110.35,110.34,59.65146955]
[1744308049847,0.063,110.35,110.34,219.31607495]
[1744308050018,0.063,110.4,110.38,41.14398226]
[1744308050212,0.063,110.4,110.39,41.14398226]
[1744308050414,0.063,110.4,110.37,18.79181043]
[1744308050716,50.12272069,110.4,110.35,59.65146955]
[1744308050915,50.12272069,110.4,110.36,0.14216157]
[1744308051216,9.1209,110.4,110.38,0.14216157]
[1744308051943,61.41921466,110.39,110.35,61.56137623]
[1744308052435,61.41921466,110.38,110.35,0.14216157]
[1744308052825,61.41921466,110.38,110.34,69.59271466]
[1744308053138,9.0604,110.37,110.35,61.41921466]
[1744308053332,9.0604,110.37,110.34,69.59271466]
[1744308053838,93.13061466,110.37,110.34,8.1735]
[1744308054148,93.13061466,110.37,110.33,61.56137623]
[1744308054717,93.13061466,110.37,110.33,0.14216157]
[1744308055316,93.13061466,110.37,110.33,61.56137623]
[1744308056329,9.0604,110.37,110.34,61.56137623]
[1744308057042,9.0604,110.37,110.35,61.41921466]
[1744308057214,31.7063,110.39,110.35,61.41921466]
[1744308057537,9.0587,110.39,110.36,61.41921466]
[1744308057736,9.0587,110.39,110.37,61.41921466]
[1744308058312,0.063,110.4,110.39,0.14216157]
[1744308058517,0.063,110.4,110.39,80.21102509]
[1744308060223,0.03,110.41,110.4,0.28432314]
[1744308060434,0.03,110.41,110.4,61.84569937]
[1744308060617,0.03,110.41,110.4,0.14216157]
[1744308060947,0.03,110.41,110.4,80.49534823]
[1744308061244,0.063,110.42,110.41,18.79181043]
[1744308061422,0.03,110.46,110.43,0.14216157]
[1744308061617,0.03,110.46,110.45,0.14216157]
[1744308062049,0.03,110.46,110.45,61.56137623]
[1744308062251,0.03,110.46,110.44,61.41921466]
[1744308062546,0.03,110.46,110.45,0.14216157]
[1744308063128,0.03,110.46,110.45,61.56137623]
[1744308063326,0.03,110.46,110.45,80.49534823]
[1744308063925,0.03,110.46,110.45,19.07613357]
[1744308064425,0.03,110.46,110.45,80.49534823]
[1744308064627,0.03,110.46,110.45,0.14216157]
[1744308064848,0.03,110.46,110.45,80.06886352]
[1744308065041,0.03,110.46,110.45,18.64964886]
[1744308065248,0.03,110.47,110.46,44.93621043]
[1744308065540,0.03,110.48,110.47,0.28432314]
[1744308065720,0.03,110.48,110.47,80.49534823]
[1744308067026,0.03,110.48,110.47,19.07613357]
[1744308067234,0.03,110.48,110.47,80.21102509]
[1744308067432,0.03,110.48,110.47,0.14216157]
[1744308067631,0.03,110.48,110.45,20.27924886]
[1744308067851,61.44921466,110.48,110.45,0.14216157]
[1744308068561,0.03,110.48,110.47,61.56137623]
[1744308068756,0.03,110.48,110.47,80.21102509]
[1744308068954,0.03,110.48,110.47,100.49534823]
[1744308069126,0.03,110.48,110.47,190.54754823]
[1744308073943,0.03,110.49,110.48,19.07613357]
[1744308074146,0.03,110.49,110.48,163.01904823]
[1744308074457,0.03,110.52,110.51,19.07613357]
[1744308074760,9.074,110.57,110.54,0.28432314]
[1744308074952,0.03,110.57,110.55,61.41921466]
[1744308075331,0.03,110.57,110.56,18.79181043]
[1744308075531,0.03,110.57,110.54,81.7035378]
[1744308075860,0.03,110.57,110.56,61.41921466]
[1744308076036,0.03,110.57,110.56,72.95921466]
[1744308076447,0.03,110.57,110.56,11.54]
[1744308076838,0.03,110.57,110.56,73.38569937]
[1744308077260,0.03,110.57,110.56,112.03534823]
[1744308077754,0.03,110.6,110.57,0.28432314]
[1744308077960,0.03,110.6,110.59,61.41921466]
[1744308078157,0.03,110.6,110.59,18.79181043]
[1744308078338,0.03,110.6,110.59,80.21102509]
[1744308078544,0.03,110.6,110.59,61.56137623]
[1744308078743,0.03,110.6,110.59,80.49534823]
[1744308078937,36.09907681,110.71,110.61,0.28432314]
[1744308079255,61.41921466,110.69,110.65,61.41921466]
[1744308079461,61.41921466,110.68,110.63,18.79181043]
[1744308079632,61.41921466,110.67,110.63,61.41921466]
[1744308079835,61.41921466,110.68,110.63,18.79181043]
[1744308080039,61.41921466,110.67,110.62,11.54]
[1744308080330,61.41921466,110.67,110.63,61.41921466]
[1744308080527,61.41921466,110.65,110.62,11.54]
[1744308080930,70.45751466,110.64,110.62,11.54]
[1744308081349,61.41921466,110.63,110.62,11.54]
[1744308081551,61.41921466,110.63,110.58,11.52]
[1744308081758,61.41921466,110.61,110.57,18.79181043]
[1744308081933,61.41921466,110.58,110.54,0.14216157]
[1744308082255,61.41921466,110.58,110.54,61.56137623]
[1744308082455,138.24491466,110.64,110.54,61.56137623]
[1744308082456,26.0,110.61,110.54,61.56137623]
[1744308082664,61.41921466,110.59,110.54,61.56137623]
[1744308082862,70.46401466,110.56,110.52,391.48]
[1744308083040,9.0444,110.57,110.53,0.14216157]
[1744308083237,9.0444,110.57,110.53,61.56137623]
[1744308083583,70.46361466,110.57,110.53,18.79181043]
[1744308083753,70.46361466,110.57,110.52,330.48]
[1744308083754,9.0444,110.57,110.52,391.89921466]
[1744308083952,70.46161466,110.59,110.54,61.41921466]
[1744308084156,61.41921466,110.58,110.54,61.41921466]
[1744308084548,61.41921466,110.58,110.53,18.79181043]
[1744308084754,61.41921466,110.58,110.53,80.21102509]
[1744308084953,48.6024,110.61,110.55,61.41921466]
[1744308085160,61.41921466,110.58,110.53,18.79181043]
[1744308085462,61.41921466,110.58,110.54,61.41921466]
[1744308085642,61.41921466,110.57,110.53,61.41921466]
[1744308085958,31.6454,110.6,110.54,61.41921466]
[1744308086154,61.41921466,110.58,110.53,61.41921466]
[1744308086456,61.41921466,110.57,110.52,310.48]
[1744308086649,61.41921466,110.56,110.52,310.48]
[1744308086961,9.0456,110.55,110.52,371.89921466]
[1744308087147,70.46481466,110.55,110.52,310.48]
[1744308087330,70.46481466,110.55,110.52,371.89921466]
[1744308087331,9.0456,110.55,110.52,371.89921466]
[1744308088343,22.606,110.59,110.53,61.41921466]
[1744308088550,9.0391,110.63,110.57,61.41921466]
[1744308088864,61.41921466,110.62,110.58,61.41921466]
[1744308089163,9.0407,110.61,110.59,61.41921466]
[1744308089347,9.0399,110.62,110.59,61.41921466]
[1744308089535,9.0399,110.62,110.57,11.66216157]
[1744308089733,61.41921466,110.61,110.57,72.93921466]
[1744308089937,61.41921466,110.6,110.57,11.52]
[1744308090631,61.41921466,110.58,110.54,61.41921466]
[1744308091104,70.46321466,110.57,110.53,17.8465]
[1744308091241,61.41921466,110.56,110.53,11.52]
[1744308091642,61.41921466,110.54,110.51,0.063]
[1744308091845,61.41921466,110.53,110.51,0.063]
[1744308092056,61.41921466,110.55,110.51,0.063]
[1744308092366,61.41921466,110.56,110.52,61.41921466]
[1744308092665,61.41921466,110.56,110.51,61.48221466]
[1744308092853,61.41921466,110.54,110.51,0.063]
[1744308093172,70.46721466,110.53,110.51,0.063]
[1744308093341,9.048,110.53,110.51,0.063]
[1744308093543,9.0464,110.54,110.51,0.063]
[1744308093875,70.46561466,110.54,110.51,0.063]
[1744308094170,61.41921466,110.53,110.51,0.063]
[1744308094373,9.0464,110.54,110.51,61.48221466]
[1744308094881,31.6484,110.59,110.53,61.41921466]
[1744308095052,61.41921466,110.56,110.54,11.52]
[1744308095255,70.46481466,110.56,110.54,11.52]
[1744308095452,61.41921466,110.55,110.51,81.063]
[1744308095774,61.41921466,110.53,110.51,0.063]
[1744308095974,61.41921466,110.54,110.51,0.063]
[1744308096274,61.41921466,110.55,110.51,0.063]
[1744308096479,93.07691466,110.56,110.51,61.48221466]
[1744308096850,70.46481466,110.56,110.52,61.41921466]
[1744308097050,70.46401466,110.56,110.52,61.41921466]
[1744308097862,9.0444,110.57,110.53,61.41921466]
[1744308098169,70.46361466,110.57,110.53,61.41921466]
[1744308098369,70.46361466,110.57,110.51,0.34732314]
[1744308098682,70.46361466,110.57,110.53,61.41921466]
[1744308098978,61.41921466,110.56,110.52,61.41921466]
[1744308099473,70.46361466,110.57,110.53,61.41921466]
[1744308099643,70.46361466,110.57,110.52,0.14216157]
[1744308099848,70.46361466,110.57,110.52,61.56137623]
[1744308100779,61.41921466,110.56,110.52,0.14216157]
[1744308101088,70.46361466,110.57,110.52,61.56137623]
[1744308101256,61.41921466,110.56,110.52,61.56137623]
[1744308101771,70.46361466,110.57,110.53,61.41921466]
[1744308102278,61.41921466,110.57,110.53,61.41921466]
[1744308102661,31.6454,110.6,110.52,0.14216157]
[1744308102662,31.6454,110.6,110.55,61.41921466]
[1744308102882,93.06461466,110.6,110.55,72.93921466]
[1744308103384,72.45489163,110.6,110.56,40.80949163]
[1744308103587,40.80949163,110.58,110.55,11.52]
[1744308103883,40.80949163,110.59,110.55,11.52]
[1744308104179,40.80949163,110.59,110.55,52.32949163]
[1744308104480,49.85269163,110.58,110.55,11.52]
[1744308105682,49.85219163,110.59,110.55,52.32949163]
[1744308105867,9.0427,110.59,110.55,11.52]
[1744308106071,9.0427,110.59,110.55,52.32949163]
[1744308106369,22.606,110.59,110.55,11.52]
[1744308106577,31.6438,110.61,110.55,52.32949163]
[1744308106763,72.45329163,110.61,110.56,40.80949163]
[1744308107082,72.45329163,110.61,110.57,40.80949163]
[1744308107083,31.6438,110.61,110.57,40.80949163]
[1744308107287,72.45329163,110.61,110.56,40.80949163]
[1744308107697,9.0407,110.61,110.57,40.80949163]
[1744308107864,9.0407,110.61,110.59,40.80949163]
[1744308108377,9.0407,110.61,110.56,6.79046157]
[1744308108378,49.85019163,110.61,110.56,6.79046157]
[1744308108558,40.80949163,110.6,110.56,47.45779163]
[1744308109674,31.6426,110.61,110.56,47.45779163]
[1744308109860,40.80949163,110.6,110.56,6.6483]
[1744308110062,40.80949163,110.6,110.56,47.45779163]
[1744308110387,9.0424,110.59,110.56,47.45779163]
[1744308110890,49.85189163,110.59,110.55,92.52]
[1744308111263,9.0424,110.59,110.56,40.80949163]
[1744308111786,49.85189163,110.59,110.55,133.32949163]
[1744308111974,40.80949163,110.58,110.55,92.52]
[1744308112163,40.80949163,110.58,110.55,11.52]
[1744308112364,9.0448,110.56,110.55,11.52]
[1744308112666,9.0448,110.56,110.52,101.28432314]
[1744308112667,49.85429163,110.56,110.52,81.0]
[1744308112860,49.85429163,110.56,110.52,40.80949163]
[1744308113607,49.85429163,110.56,110.51,71.04214049]
[1744308113765,40.80949163,110.55,110.51,71.04214049]
[1744308113967,49.85429163,110.56,110.51,71.04214049]
[1744308114166,49.85429163,110.56,110.51,0.063]
[1744308114167,40.80949163,110.53,110.51,0.063]
[1744308114367,9.0481,110.52,110.51,0.063]
[1744308115271,49.85759163,110.52,110.51,0.063]
[1744308115469,49.85759163,110.52,110.51,0.0001]
[1744308115768,90.66708326,110.52,110.51,0.0001]
[1744308117410,131.71947982,110.52,110.51,0.0001]
[1744308118804,70.38378991,110.52,110.51,0.0001]
[1744308120096,9.0481,110.52,110.51,0.0001]
[1744308120299,70.38378991,110.52,110.51,0.0001]
[1744308121807,131.71947982,110.52,110.51,0.0001]